bitfinex-derivatives/quotes_ETHF0:USTF0_20260208
["timestamp","ask_amount","ask_price","bid_price","bid_amount"]
[1770557908098,6.04035258,2122.4,2122.2,3.77685843]
[1770557908303,0.00472862,2123.1,2122.1,28.52401332]
[1770557908304,6.59013135,2122.3,2122.1,28.52401332]
[1770557908504,12.24058978,2122.7,2122.1,24.74715489]
[1770557908809,3.85936668,2122.6,2122.1,24.74715489]
[1770557909007,12.24058978,2122.6,2122.0,0.00515705]
[1770557909304,3.85936668,2122.5,2122.1,24.65446638]
[1770557909503,3.85936668,2122.9,2122.1,24.65446638]
[1770557909909,3.85936668,2122.9,2122.0,0.00515705]
[1770557910099,3.85936668,2122.9,2122.0,24.65962343]
[1770557910298,3.85936668,2122.7,2122.0,24.65962343]
[1770557910498,3.85936668,2122.7,2121.2,6.078]
[1770557910499,3.85936668,2122.7,2121.2,3.77685843]
[1770557910707,2.73755518,2121.6,2121.4,3.77685843]
[1770557910913,2.64331814,2121.6,2121.4,3.77685843]
[1770557911207,3.85936668,2122.2,2121.4,1.18930037]
[1770557911509,0.00578165,2122.2,2121.6,3.77685843]
[1770557912105,3.86514833,2122.2,2121.6,3.77685843]
[1770557912410,3.86514833,2122.2,2121.7,28.43132481]
[1770557912411,0.00578165,2122.2,2121.7,28.43132481]
[1770557912612,0.00578165,2122.2,2121.7,3.77685843]
[1770557912800,3.86514833,2122.2,2121.5,28.43132481]
[1770557913508,3.86514833,2122.2,2121.5,24.65446638]
[1770557913809,3.86514833,2122.2,2120.2,3.77685843]
[1770557914016,3.86514833,2122.2,2120.3,3.77685843]
[1770557914308,3.86514833,2122.2,2120.4,3.77685843]
[1770557914509,3.86514833,2122.2,2120.4,4.01282843]
[1770557914703,3.86514833,2122.2,2120.6,3.77685843]
[1770557915104,3.86514833,2122.2,2120.8,3.77685843]
[1770557915506,3.86514833,2122.2,2121.0,3.77685843]
[1770557916001,3.86514833,2122.2,2121.2,3.77685843]
[1770557916407,3.86514833,2122.2,2121.3,24.65446638]
[1770557916607,3.86514833,2122.2,2121.3,28.43132481]
[1770557917616,3.86514833,2122.2,2121.4,3.77685843]
[1770557918110,0.00196759,2122.2,2121.6,3.77685843]
[1770557919315,3.85936668,2122.5,2121.6,3.77685843]
[1770557919617,3.85936668,2122.9,2121.8,3.77685843]
[1770557920008,3.85936668,2122.9,2121.9,56.52532481]
[1770557920210,3.863179,2122.9,2122.1,3.77685843]
[1770557920415,7.07245044,2122.8,2122.1,3.77685843]
[1770557920617,3.863179,2122.9,2122.2,24.65446638]
[1770557920814,7.07247467,2122.8,2122.2,28.43132481]
[1770557921014,0.00381232,2122.9,2122.3,3.77685843]
[1770557921215,0.00381232,2122.9,2122.4,3.77685843]
[1770557921712,0.00381232,2122.9,2122.5,24.65446638]
[1770557921923,0.00381232,2122.9,2122.6,3.77685843]
[1770557922415,3.85936668,2123.2,2122.6,3.77685843]
[1770557922720,3.85936668,2123.2,2122.7,28.42751249]
[1770557922913,3.85936668,2123.2,2122.1,24.65065406]
[1770557923111,3.85936668,2123.2,2122.4,3.77685843]
[1770557923415,3.86498542,2123.2,2122.1,28.42751249]
[1770557923614,3.86498542,2123.2,2122.1,52.89465406]
[1770557923816,3.86498542,2123.2,2122.1,56.67151249]
[1770557924716,3.86498542,2123.2,2122.1,58.88651249]
[1770557925017,3.86498542,2123.2,2122.1,28.42751249]
[1770557925219,3.86498542,2123.2,2122.1,56.67051249]
[1770557925518,3.86498542,2123.2,2122.2,11.12714199]
[1770557926518,4.10066542,2123.2,2122.3,24.65065406]
[1770557926718,4.10066542,2123.2,2122.1,11.12714199]
[1770557927116,4.10066542,2123.2,2122.3,11.12714199]
[1770557927721,3.86498542,2123.2,2122.5,11.12714199]
[1770557927920,0.00561874,2123.2,2122.5,11.12714199]
[1770557928119,5.40345113,2123.2,2122.5,11.12714199]
[1770557928618,0.00561874,2123.2,2122.7,11.12714199]
[1770557928814,0.00561874,2123.2,2122.6,24.65065406]
[1770557928815,0.00561874,2123.2,2122.9,11.12714199]
[1770557929220,0.00561874,2123.2,2123.0,24.65065406]
[1770557929413,5.39783239,2123.7,2123.1,11.12714199]
[1770557929614,11.3557078,2123.7,2123.1,11.12714199]
[1770557929816,11.3557078,2123.7,2123.2,24.65065406]
[1770557930014,11.3557078,2123.7,2123.2,35.77779605]
[1770557930320,0.00555038,2123.7,2123.4,11.12714199]
[1770557930517,0.23554,2124.4,2123.6,11.12714199]
[1770557930518,11.3557078,2124.3,2123.6,11.12714199]
[1770557930921,11.3557078,2124.3,2123.7,19.25282167]
[1770557931410,11.35996226,2124.3,2123.7,19.25282167]
[1770557931614,11.59551226,2124.3,2123.5,41.59014199]
[1770557932922,11.59551226,2124.3,2123.6,11.12714199]
[1770557933110,11.59551226,2124.3,2123.6,5.23686679]
[1770557933316,7.06830709,2124.2,2123.6,5.23686679]
[1770557933511,7.06830709,2124.1,2123.6,5.23686679]
[1770557933712,7.06830709,2124.0,2123.6,5.23686679]
[1770557933919,7.06830709,2123.9,2123.6,5.23686679]
[1770557934112,0.00425446,2124.3,2123.6,5.23686679]
[1770557934512,11.3557078,2124.9,2123.6,5.23686679]
[1770557934914,11.3557078,2124.7,2123.6,5.23686679]
[1770557935113,11.3557078,2124.7,2123.8,11.12714199]
[1770557935514,11.36087973,2124.7,2123.8,11.12714199]
[1770557936122,6.72811987,2124.6,2123.8,11.12714199]
[1770557936624,11.36087973,2124.7,2123.8,11.12714199]
[1770557936824,11.3557078,2124.5,2123.8,11.12714199]
[1770557937325,6.72811987,2124.2,2123.7,22.23814199]
[1770557937527,18.08382767,2124.3,2123.8,11.12714199]
[1770557939125,6.72811987,2124.1,2122.8,0.30359037]
[1770557939322,11.3557078,2124.0,2123.4,11.12714199]
[1770557940127,11.3557078,2124.0,2123.4,11.13153119]
[1770557940328,41.66243174,2123.7,2123.4,11.13153119]
[1770557941419,41.66243174,2123.9,2123.4,11.13153119]
[1770557942025,11.3557078,2123.8,2123.4,0.0043892]
[1770557942227,11.3557078,2123.8,2123.4,7.60343572]
[1770557942529,11.3557078,2123.8,2123.3,33.35314199]
[1770557942731,11.3557078,2123.6,2123.3,0.43047711]
[1770557943131,11.3557078,2123.5,2122.9,11.12714199]
[1770557943331,53.01813954,2123.5,2122.9,11.12714199]
[1770557944134,53.01813954,2123.4,2122.9,11.13044954]
[1770557944340,41.66243174,2123.3,2122.9,11.13044954]
[1770557944835,53.01813954,2123.4,2122.9,11.13044954]
[1770557945231,41.66243174,2123.3,2122.9,11.13044954]
[1770557945841,11.74387568,2123.8,2122.9,11.13044954]
[1770557946036,5.42311092,2123.7,2122.9,11.13044954]
[1770557946238,5.42311092,2123.6,2122.9,11.13044954]
[1770557946432,5.42311092,2123.5,2122.9,11.13044954]
[1770557946630,11.74387568,2123.8,2122.9,11.13044954]
[1770557946837,4.83648382,2123.7,2122.9,11.13044954]
[1770557947136,4.83648382,2123.6,2122.9,11.13044954]
[1770557947337,4.83648382,2123.5,2122.9,11.13044954]
[1770557947538,11.74387568,2123.7,2122.9,11.13044954]
[1770557947734,4.84034829,2123.6,2122.9,11.13044954]
[1770557947935,4.52621614,2123.5,2122.9,11.13044954]
[1770557948131,11.74387568,2124.2,2122.9,11.13044954]
[1770557950341,11.74387568,2124.0,2122.9,11.13044954]
[1770557952238,11.73969793,2123.9,2122.9,11.13044954]
[1770557955642,5.58154649,2124.0,2122.9,11.13044954]
[1770557955948,17.31771509,2124.4,2123.1,0.94363488]
[1770557956141,5.58154649,2124.3,2123.1,0.94363488]
[1770557956543,17.31771509,2124.3,2123.1,0.94363488]
[1770557956743,11.7361686,2124.3,2123.2,6.19319131]
[1770557956941,11.7361686,2124.6,2123.2,6.19319131]
[1770557957147,0.00517193,2124.7,2123.6,0.95078195]
[1770557957347,0.00517193,2124.7,2123.7,21.247]
[1770557957548,11.74134053,2124.7,2123.7,27.67580131]
[1770557957749,11.74134053,2124.7,2123.6,0.71515195]
[1770557957941,11.74134053,2124.7,2123.8,30.454]
[1770557957942,11.7361686,2124.6,2123.8,30.454]
[1770557958139,11.7361686,2124.5,2123.8,30.454]
[1770557960050,11.7361686,2124.3,2123.8,30.454]
[1770557960244,4.40430021,2124.2,2123.8,30.454]
[1770557960442,11.7361686,2124.3,2123.9,30.452]
[1770557960647,5.58154649,2124.6,2123.9,30.452]
[1770557960851,17.32288702,2124.7,2123.9,30.452]
[1770557961152,11.74134053,2124.7,2123.9,30.452]
[1770557961352,0.00517193,2124.7,2123.9,30.452]
[1770557961552,11.74134053,2124.7,2123.9,30.452]
[1770557962643,11.74134053,2124.7,2123.6,0.71515195]
[1770557962850,11.7361686,2124.6,2123.7,8.333]
[1770557969058,11.7361686,2124.5,2123.6,0.71515195]
[1770557969461,11.7361686,2124.4,2123.6,0.71515195]
[1770557970259,17.31771509,2124.4,2123.6,0.71515195]
[1770557970460,11.7361686,2124.3,2123.3,15.234]
[1770557970660,11.7361686,2124.3,2123.1,0.70795488]
[1770557970661,11.7361686,2124.2,2123.2,21.246]
[1770557970857,11.7361686,2123.9,2123.2,21.246]
[1770557972858,11.7361686,2123.7,2123.2,21.246]
[1770557975459,4.1504923,2123.6,2123.1,0.47910683]
[1770557975664,11.7361686,2123.4,2123.1,0.47910683]
[1770557977156,11.7361686,2123.6,2123.1,0.47910683]
[1770557982269,11.7361686,2123.6,2123.1,0.38555371]
[1770557982472,11.7361686,2123.4,2122.9,0.00330755]
[1770557982668,11.7361686,2123.4,2122.5,0.29902126]
[1770557982875,11.7361686,2123.4,2122.1,10.482]
[1770557982876,11.7361686,2123.2,2122.1,10.482]
[1770557983075,11.7361686,2123.0,2122.1,11.19110719]
[1770557983471,36.3024807,2123.5,2122.1,11.47216412]
[1770557983667,11.7361686,2124.4,2122.7,5.62469305]
[1770557983974,11.7361686,2124.2,2122.8,11.80848062]
[1770557984172,11.7361686,2124.2,2122.8,12.51726571]
[1770557984372,11.7361686,2124.2,2122.8,6.33347814]
[1770557984675,11.7361686,2124.2,2122.9,6.18378757]
[1770557984876,11.73959058,2124.2,2122.9,6.18378757]
[1770557988879,11.73959058,2124.2,2122.8,0.94449509]
[1770557988880,4.01692435,2124.1,2122.8,0.94449509]
[1770557989075,11.73959058,2124.2,2122.8,0.94449509]
[1770557989274,4.01700754,2124.1,2122.8,0.94449509]
[1770557989480,11.73959058,2124.2,2122.8,0.94449509]
[1770557989682,11.73566707,2123.9,2122.8,0.94449509]
[1770557991376,11.73566707,2123.9,2122.8,6.56918814]
[1770557991674,11.73908905,2124.2,2122.8,6.33347814]
[1770557991879,11.73908905,2124.2,2123.1,5.86037305]
[1770557992079,11.73908905,2124.2,2123.2,25.449]
[1770557993181,11.73908905,2124.2,2123.1,0.23568]
[1770557993377,11.73908905,2124.2,2123.3,30.452]
[1770557993580,11.73908905,2124.2,2123.3,31.14849842]
[1770557996477,0.00342198,2124.2,2123.3,31.14849842]
[1770557996672,11.73566707,2125.0,2123.9,5.62469305]
[1770557996880,11.73566707,2125.0,2124.0,0.23558]
[1770557997177,11.73566707,2125.0,2124.0,0.95052564]
[1770557997578,11.73922539,2125.0,2124.1,24.78]
[1770557999780,0.00355832,2125.0,2124.1,24.78]
[1770557999978,11.73566707,2125.1,2124.0,0.72013609]
[1770558000187,11.73566707,2124.9,2124.0,0.72013609]
[1770558000983,11.74152247,2124.9,2124.0,0.72013609]
[1770558003483,4.01156237,2124.8,2124.0,0.71162293]
[1770558003688,11.74152247,2124.9,2124.0,0.71162293]
[1770558003986,11.73566707,2124.7,2124.0,0.71162293]
[1770558004187,11.73566707,2124.7,2123.6,14.827]
[1770558005387,11.73566707,2124.7,2123.7,0.23148239]
[1770558006297,11.67237424,2124.5,2123.7,0.23148239]
[1770558008712,11.67237424,2124.5,2123.6,0.00488586]
[1770558010102,11.67237424,2124.3,2123.6,0.00488586]
[1770558011202,11.67237424,2124.1,2123.6,0.00488586]
[1770558011407,11.67237424,2124.1,2123.3,22.52849842]
[1770558012102,11.67237424,2124.1,2123.3,0.69649842]
[1770558012299,4.01966654,2124.0,2122.8,0.70878509]
[1770558012502,11.67237424,2123.8,2122.4,13.231]
[1770558012699,11.67237424,2123.6,2122.4,13.231]
[1770558012996,11.67237424,2123.4,2122.4,13.231]
[1770558013199,11.67237424,2123.4,2122.5,1.71710996]
[1770558013598,11.67829814,2123.4,2122.5,1.7218383]
[1770558014204,11.67829814,2123.4,2122.5,0.00472834]
[1770558014400,11.67829814,2123.4,2122.5,1.68261911]
[1770558016106,11.67829814,2123.4,2122.5,0.00472834]
[1770558016308,11.67829814,2123.4,2122.5,30.45372834]
[1770558017908,11.67829814,2123.4,2122.5,31.45002699]
[1770558018608,11.67829814,2123.4,2122.6,0.99629865]
[1770558018912,11.60690104,2123.6,2122.6,0.99629865]
[1770558019911,11.61281097,2123.6,2122.6,0.99629865]
[1770558022400,11.61281097,2123.6,2122.5,30.45372834]
[1770558023212,11.61281097,2123.6,2122.5,31.56751236]
[1770558025217,11.61281097,2123.6,2122.6,1.23106965]
[1770558025521,11.61281097,2123.6,2122.5,30.45372834]
[1770558026007,11.60690104,2123.4,2122.5,30.45372834]
[1770558029720,11.60690104,2123.4,2122.6,1.34765644]
[1770558033413,42.0455759,2124.5,2122.9,0.2357]
[1770558033618,11.60690104,2123.9,2123.0,1.15364778]
[1770558034017,42.0455759,2124.6,2123.0,1.15364778]
[1770558034018,11.60690104,2124.6,2123.2,1.38931778]
[1770558034321,11.60690104,2124.4,2123.4,1.15364778]
[1770558037824,11.60690104,2124.4,2123.3,30.457]
[1770558038321,11.60690104,2124.4,2123.3,31.7651768]
[1770558038521,11.60690104,2124.4,2123.3,30.457]
[1770558042023,11.60690104,2124.4,2123.4,1.57666129]
[1770558043426,10.67473487,2124.4,2123.5,0.23564]
[1770558043821,11.61109636,2124.6,2123.6,2.34324216]
[1770558044027,11.61109636,2124.6,2123.7,2.10761216]
[1770558046933,11.61109636,2124.6,2123.7,2.34322216]
[1770558047934,10.70714099,2125.5,2124.4,2.38269196]
[1770558048134,10.70714099,2125.5,2124.5,30.447]
[1770558048832,10.71119481,2125.5,2124.6,2.14715196]
[1770558049328,10.71119481,2125.5,2124.5,30.45212829]
[1770558049734,10.71119481,2125.5,2124.5,32.63700798]
[1770558050236,10.71119481,2125.5,2124.6,2.18487969]
[1770558051531,10.71119481,2125.5,2124.5,30.45212829]
[1770558051732,10.71119481,2125.5,2124.5,32.595612]
[1770558051932,10.71119481,2125.5,2124.6,2.14348371]
[1770558052831,10.71119481,2125.5,2124.6,2.37900371]
[1770558053229,10.71119481,2125.5,2124.8,2.14348371]
[1770558053431,10.70714099,2125.7,2124.8,2.37897371]
[1770558053828,10.70714099,2126.6,2124.8,2.37897371]
[1770558054032,10.70714099,2126.4,2124.8,2.37897371]
[1770558054230,10.70714099,2126.4,2125.0,2.20402438]
[1770558054433,10.71098943,2126.4,2125.0,2.20402438]
[1770558055031,10.71098943,2126.4,2125.1,14.479]
[1770558056837,10.71098943,2126.4,2125.2,2.11414846]
[1770558057031,10.71098943,2126.4,2125.1,14.75656257]
[1770558059835,10.71098943,2126.4,2125.1,0.27756257]
[1770558060041,10.71098943,2126.4,2125.2,18.478]
[1770558060937,10.71098943,2126.4,2125.2,20.76934244]
[1770558061534,10.70714099,2126.2,2125.2,18.478]
[1770558062142,10.70714099,2126.2,2125.3,2.22552084]
[1770558064034,10.70714099,2126.2,2125.2,18.478]
[1770558064634,10.70714099,2126.2,2125.2,20.43799311]
[1770558064836,10.70714099,2126.2,2125.3,1.95999311]
[1770558065038,5.81681649,2126.8,2125.3,1.95999311]
[1770558065039,32.37077443,2127.7,2125.6,1.08289]
[1770558065242,50.41982411,2127.6,2126.4,0.23531]
[1770558065434,50.41982411,2127.6,2126.6,0.15885392]
[1770558065635,11.73621041,2127.7,2127.3,2.78711495]
[1770558065833,11.65678345,2127.6,2127.1,2.78711495]
[1770558066037,11.65678345,2127.6,2126.9,4.18067243]
[1770558066038,11.66282892,2127.6,2126.9,2.78711495]
[1770558066237,11.65678345,2127.4,2126.9,4.865791]
[1770558066437,11.65678345,2127.2,2126.5,2.78711495]
[1770558066638,11.65678345,2127.2,2126.7,30.425]
[1770558066837,11.65678345,2127.0,2126.7,30.425]
[1770558067042,11.65678345,2127.0,2126.7,0.00428942]
[1770558067243,11.65678345,2126.9,2126.7,0.00428942]
[1770558068443,11.73621041,2126.8,2126.6,29.48701964]
[1770558069440,11.73621041,2126.8,2126.6,29.49244954]
[1770558069944,0.00604547,2127.6,2126.8,2.00043161]
[1770558070144,61.16186418,2127.6,2127.1,2.00043161]
[1770558070345,10.74204007,2127.6,2127.1,2.00043161]
[1770558070736,10.7359946,2127.8,2127.1,2.00043161]
[1770558070932,10.7359946,2128.0,2127.3,2.00043161]
[1770558071138,10.7359946,2128.0,2127.5,2.00043161]
[1770558071434,11.15353186,2129.1,2127.5,2.00043161]
[1770558071642,11.15353186,2128.9,2127.5,4.78183608]
[1770558071844,11.15963859,2128.9,2127.5,4.78183608]
[1770558072145,11.15353186,2128.7,2127.6,1.1653571]
[1770558073443,11.15353186,2128.5,2127.5,2.77414989]
[1770558073645,11.15353186,2128.5,2127.6,16.457]
[1770558073845,11.26003236,2128.3,2127.6,16.457]
[1770558074241,11.26003236,2128.1,2127.6,16.457]
[1770558074538,11.26003236,2128.1,2127.6,17.41357032]
[1770558074745,61.67985647,2128.1,2127.6,17.41357032]
[1770558076037,11.36884725,2128.0,2127.6,16.457]
[1770558076846,11.36884725,2127.8,2127.2,30.405]
[1770558077351,11.36884725,2127.6,2127.2,30.405]
[1770558077739,11.36884725,2128.6,2127.2,31.47634684]
[1770558078240,11.36884725,2128.6,2127.2,30.405]
[1770558079452,11.36884725,2128.6,2127.3,30.402]
[1770558079651,11.36884725,2128.4,2127.3,30.402]
[1770558081144,50.41982411,2128.3,2127.3,30.402]
[1770558081351,11.36884725,2128.2,2127.3,30.402]
[1770558081754,11.36884725,2128.0,2127.3,30.402]
[1770558082050,11.36884725,2128.0,2127.2,30.4]
[1770558082252,11.36884725,2127.8,2127.2,30.4]
[1770558084742,11.36884725,2127.8,2127.0,4.18067243]
[1770558084949,11.36884725,2127.6,2127.1,26.639]
[1770558085447,11.36884725,2127.4,2126.8,4.18067243]
[1770558085653,11.37330956,2127.4,2126.9,30.399]
[1770558085851,50.41982411,2127.3,2126.9,30.399]
[1770558086155,11.36884725,2127.2,2126.9,30.399]
[1770558086355,61.78867136,2127.3,2126.9,30.399]
[1770558086555,11.36884725,2127.2,2126.9,30.399]
[1770558087254,61.78867137,2127.4,2127.0,5.8859183]
[1770558087455,1e-08,2127.4,2127.0,5.8859183]
[1770558087652,50.41982412,2127.4,2127.0,5.8859183]
[1770558087849,49.48028642,2127.4,2127.1,0.95563021]
[1770558088155,49.48028642,2127.4,2127.0,4.81966115]
[1770558088354,60.84913367,2127.4,2127.0,9.00033358]
[1770558088556,60.84913367,2127.4,2127.0,9.95596379]
[1770558088851,11.36884725,2127.3,2127.0,9.00033358]
[1770558089047,11.36884725,2127.3,2127.1,3.87566115]
[1770558089252,11.36884725,2127.3,2127.0,4.18067243]
[1770558089655,11.36884725,2127.3,2126.9,34.57967243]
[1770558090556,49.48461615,2127.4,2127.0,5.19700136]
[1770558090750,11.36884725,2127.3,2126.9,34.57967243]
[1770558091254,11.36884725,2127.1,2126.9,36.02369305]
[1770558091460,11.36884725,2127.1,2126.9,33.43613499]
[1770558091653,11.36884725,2127.1,2126.9,27.81144194]
[1770558091849,60.84913367,2127.1,2126.9,27.81144194]
[1770558092252,60.84913367,2127.1,2126.9,33.43613499]
[1770558093459,0.00432973,2127.4,2127.0,11.39797891]
[1770558093460,47.52674624,2127.2,2127.0,11.39797891]
[1770558094058,47.52674624,2127.2,2126.9,44.8341139]
[1770558094357,47.52674624,2127.2,2127.1,5.62469305]
[1770558095750,58.89559349,2127.2,2127.1,4.68069305]
[1770558095956,58.89559349,2127.2,2127.1,4.58765867]
[1770558096157,58.89559349,2127.2,2126.9,27.81144194]
[1770558096456,58.89559349,2127.2,2126.9,39.20942085]
[1770558096664,11.36884725,2127.1,2126.9,27.81144194]
[1770558096960,58.89559349,2127.2,2126.9,27.81144194]
[1770558097256,58.89559349,2127.2,2126.9,39.20942085]
[1770558097462,46.48971186,2127.2,2127.0,11.39797891]
[1770558098165,46.48971186,2127.2,2126.9,39.20942085]
[1770558100158,11.37317698,2127.4,2126.9,39.20942085]
[1770558100362,11.36884725,2127.3,2126.9,39.20942085]
[1770558100562,11.36884725,2127.2,2126.9,27.81144194]
[1770558101164,11.36884725,2127.2,2127.0,4.61100027]
[1770558101359,5.48869347,2127.2,2127.1,4.61100027]
[1770558103669,51.97840533,2127.2,2127.1,4.61100027]
[1770558105564,48.45010735,2127.2,2127.1,4.61100027]
[1770558110275,46.48971186,2127.2,2127.1,4.61100027]
[1770558110469,57.309255,2127.2,2127.1,4.61100027]
[1770558111271,57.309255,2127.2,2127.1,3.66700027]
[1770558111469,40.60929148,2127.2,2127.1,3.66700027]
[1770558111669,51.42883462,2127.2,2127.1,3.66700027]
[1770558116676,40.60929148,2127.2,2127.1,3.66700027]
[1770558117383,51.42883462,2127.2,2127.1,3.66700027]
[1770558119185,0.97682204,2127.0,2126.6,0.0054299]
[1770558119372,0.97682204,2127.0,2126.7,30.4]
[1770558119880,40.60929148,2126.9,2126.7,30.4]
[1770558120079,41.63148976,2126.9,2126.7,30.4]
[1770558121177,40.60929148,2126.9,2126.7,30.4]
[1770558121987,1.02219828,2127.0,2126.7,30.4]
[1770558122188,41.83526709,2126.9,2126.7,30.4]
[1770558122381,1.22597561,2126.9,2126.6,0.0054299]
[1770558122693,40.60929148,2126.8,2126.7,30.401]
[1770558122985,40.60929148,2126.8,2126.7,41.63846872]
[1770558123183,40.60929148,2126.8,2126.7,30.401]
[1770558123976,41.76702304,2126.8,2126.7,29.24326844]
[1770558124483,40.60929148,2126.8,2126.7,29.24326844]
[1770558125186,40.60929148,2126.8,2126.7,29.14003771]
[1770558125586,41.00541271,2126.8,2126.6,0.0054299]
[1770558125786,41.00541271,2126.8,2126.7,30.403]
[1770558127289,40.60929148,2126.8,2126.7,30.403]
[1770558127691,41.04104208,2126.8,2126.7,30.403]
[1770558130293,0.4317506,2126.8,2126.7,30.403]
[1770558132488,41.04104208,2126.8,2126.7,30.403]
[1770558134288,13.97217947,2126.7,2126.6,30.405]
[1770558134489,3.76588799,2126.7,2126.6,30.405]
[1770558134997,3.79293527,2127.2,2126.6,30.405]
[1770558135194,3.79293527,2127.2,2126.6,30.40923477]
[1770558137293,3.79293527,2127.2,2126.6,0.00423477]
[1770558137499,3.83195054,2127.0,2126.4,24.867]
[1770558137899,4.092652,2126.8,2126.5,11.50898524]
[1770558138297,10.20629148,2126.7,2126.5,11.50898524]
[1770558138498,10.20629148,2126.7,2126.5,11.51300055]
[1770558138800,10.20629148,2126.7,2126.5,0.00401531]
[1770558139001,4.092652,2126.6,2126.4,24.867]
[1770558140101,4.092652,2126.6,2126.4,24.87231925]
[1770558140303,14.20599047,2126.5,2126.4,24.77965726]
[1770558140594,13.02323824,2127.1,2126.5,11.50898524]
[1770558140801,10.20629148,2127.1,2126.5,11.50898524]
[1770558140995,3.99969899,2127.0,2126.5,11.50898524]
[1770558141495,10.20629148,2126.9,2126.5,11.50898524]
[1770558141694,3.97910992,2127.1,2126.5,11.50898524]
[1770558142196,10.20629148,2127.0,2126.5,11.50898524]
[1770558143300,3.97910992,2126.9,2126.5,11.50898524]
[1770558143701,10.20629148,2126.8,2126.5,11.50898524]
[1770558146205,6.58058317,2126.8,2126.5,11.50898524]
[1770558147007,10.45585467,2127.3,2126.5,14.3226665]
[1770558147607,10.46036233,2127.3,2126.5,14.3226665]
[1770558148008,10.46036233,2127.3,2126.5,11.50898524]
[1770558148311,10.46036233,2127.3,2126.7,11.50898524]
[1770558153430,10.46036233,2127.3,2126.6,14.32703533]
[1770558153632,10.36025354,2127.2,2126.6,11.50898524]
[1770558155828,10.32521341,2127.1,2126.4,44.73935458]
[1770558156027,10.32521341,2127.1,2126.4,41.92130449]
[1770558156533,10.32521341,2127.0,2126.4,41.92130449]
[1770558158728,10.32521341,2127.0,2126.5,11.50898524]
[1770558160629,10.27282672,2127.1,2126.5,11.50898524]
[1770558162027,13.15238932,2127.2,2126.5,11.50898524]
[1770558162532,10.34112916,2127.1,2126.5,11.50898524]
[1770558164837,2.81126016,2127.2,2126.5,11.50898524]
[1770558165139,42.2917555,2127.4,2126.7,11.01399498]
[1770558165140,0.00432973,2127.4,2126.7,11.01399498]
[1770558166236,0.00432973,2127.4,2126.6,2.81805009]
[1770558166237,0.00432973,2127.4,2126.9,11.01399498]
[1770558167040,0.00432973,2127.4,2126.9,13.83204507]
[1770558167339,0.00432973,2127.4,2127.0,11.01399498]
[1770558168737,12.94234438,2128.4,2127.4,11.01399498]
[1770558169040,12.94234438,2128.5,2127.7,11.01399498]
[1770558169245,10.13108422,2128.6,2127.7,11.01399498]
[1770558169629,10.13573366,2128.6,2127.7,11.01399498]
[1770558169836,0.00464944,2128.6,2127.7,11.01399498]
[1770558170031,0.00464944,2128.6,2127.8,11.01399498]
[1770558170239,10.08519624,2128.6,2127.8,11.01399498]
[1770558173635,0.00464944,2128.6,2127.8,11.01399498]
[1770558174244,9.21437173,2128.6,2127.8,11.01399498]
[1770558175341,9.21437173,2128.6,2127.6,11.01399498]
[1770558184553,3.80164944,2128.6,2127.6,11.01399498]
[1770558185249,13.16815987,2128.6,2127.6,11.01399498]
[1770558185952,13.28076396,2128.6,2127.6,11.01399498]
[1770558186349,9.47911452,2128.5,2127.6,11.01399498]
[1770558186946,3.80164944,2128.6,2127.6,11.01399498]
[1770558187448,9.47911452,2128.5,2127.6,11.01399498]
[1770558188051,13.29658079,2128.6,2127.6,11.01399498]
[1770558188244,3.80164944,2128.6,2127.6,11.01399498]
[1770558188953,0.00464944,2128.6,2127.6,11.01399498]
[1770558189345,0.00464944,2128.6,2127.6,11.24917498]
[1770558189550,1.20032607,2129.0,2127.8,11.01399498]
[1770558189753,9.49958079,2129.1,2127.8,11.01399498]
[1770558190253,9.49958079,2129.1,2127.9,11.01399498]
[1770558190446,9.50311328,2129.1,2127.9,11.01985773]
[1770558191254,0.00353249,2129.1,2128.0,11.01399498]
[1770558191453,0.00353249,2129.1,2128.0,11.30865578]
[1770558192856,0.00353249,2129.1,2128.2,11.01399498]
[1770558193059,0.00353249,2129.1,2128.4,11.01399498]
[1770558193256,9.73135046,2129.1,2128.4,11.01399498]
[1770558195457,9.73135046,2129.1,2128.2,10.81553912]
[1770558198250,9.70995659,2129.0,2128.2,10.81553912]
[1770558203261,9.73382871,2128.9,2128.2,10.81553912]
[1770558205365,13.49801511,2128.8,2128.2,10.81553912]
[1770558207466,3.797,2128.8,2128.2,10.81553912]
[1770558209377,9.69532098,2128.7,2128.2,10.81553912]
[1770558209665,9.68377468,2128.5,2128.1,10.81553912]
[1770558209968,9.68377468,2128.5,2128.1,9.87153912]
[1770558210168,9.68377468,2128.5,2128.0,10.81553912]
[1770558215370,9.68377468,2128.5,2127.9,0.00586275]
[1770558215568,10.44466383,2128.5,2127.9,10.82140187]
[1770558216166,10.44466383,2128.3,2127.9,0.00586275]
[1770558216366,10.44466383,2128.3,2127.5,4.22904762]
[1770558216367,10.44466383,2128.3,2127.5,10.81553912]
[1770558216567,10.44466383,2128.1,2127.5,10.81553912]
[1770558217279,10.44466383,2128.1,2127.5,10.82140161]
[1770558217576,14.24166383,2128.2,2127.5,10.82140161]
[1770558218577,14.24166383,2128.2,2127.5,11.11741654]
[1770558219177,10.4270133,2128.1,2127.5,11.11741654]
[1770558219682,3.797,2128.2,2127.5,13.9249579]
[1770558219881,3.797,2128.4,2127.6,10.81553912]
[1770558220276,10.49804082,2128.3,2127.6,10.81553912]
[1770558222882,3.797,2128.4,2127.6,10.81553912]
[1770558223081,14.52315701,2128.4,2127.6,10.81553912]
[1770558223582,10.61198135,2128.3,2126.9,2.04070012]
[1770558223879,1.08187,2127.6,2123.8,12.91375984]
[1770558224079,4.708,2124.7,2123.7,10.81553912]
[1770558224274,11.28018258,2124.6,2123.9,10.81553912]
[1770558224470,18.30450432,2124.4,2123.9,7.28226664]
[1770558224674,6.70820072,2124.3,2124.0,10.81553912]
[1770558224874,6.70820072,2124.2,2124.0,10.81553912]
[1770558225074,11.67042558,2124.0,2123.9,0.00422492]
[1770558225284,11.67042558,2123.9,2122.5,11.14035987]
[1770558225582,11.67042558,2123.7,2123.2,11.14035987]
[1770558225776,6.70820072,2123.6,2123.2,11.14035987]
[1770558225983,6.70820072,2123.5,2123.2,11.14035987]
[1770558226170,11.67042558,2123.7,2123.3,9.50144166]
[1770558226376,14.44373833,2123.4,2123.2,6.83145075]
[1770558226573,6.20887928,2123.3,2123.2,6.83145075]
[1770558226781,6.20887928,2123.3,2123.2,0.00490126]
[1770558226981,17.87930486,2123.3,2123.2,0.00490126]
[1770558227375,6.20887928,2123.3,2123.2,0.00490126]
[1770558227576,5.26487928,2123.3,2123.2,6.83145075]
[1770558227877,2.57349642,2123.3,2123.2,6.83145075]
[1770558228279,11.67042558,2123.5,2123.2,6.83145075]
[1770558228476,14.44373833,2124.0,2123.3,11.14035987]
[1770558228681,11.67042558,2124.0,2123.3,11.14035987]
[1770558230477,11.67042558,2124.0,2123.4,17.96690936]
[1770558230682,41.60562484,2124.4,2123.4,17.96690936]
[1770558230683,11.67042558,2124.2,2123.5,11.14035987]